bitfinex/quotes_SOLUSD_20250624
["timestamp","ask_amount","ask_price","bid_price","bid_amount"]
[1750764521558,5.70573154,143.8,143.78,25.6047191]
[1750764521751,35.18573154,143.8,143.78,25.6047191]
[1750764521942,5.70573154,143.79,143.78,25.6047191]
[1750764522560,35.18573154,143.8,143.78,25.6047191]
[1750764525262,5.70573154,143.79,143.78,18.64964886]
[1750764526303,10.89303664,143.79,143.78,18.64964886]
[1750764526470,5.18717816,143.79,143.78,18.64964886]
[1750764526770,5.70573154,143.79,143.78,18.64964886]
[1750764530579,10.8914998,143.79,143.78,18.64964886]
[1750764533573,10.88879692,143.79,143.78,18.64964886]
[1750764535053,5.70573154,143.79,143.78,18.64964886]
[1750764535468,34.66525522,143.8,143.78,25.6047191]
[1750764535665,29.48,143.8,143.78,25.6047191]
[1750764537266,29.46,143.8,143.78,25.6047191]
[1750764537851,5.18370511,143.79,143.78,25.6047191]
[1750764538056,5.18361171,143.79,143.78,25.6047191]
[1750764538257,5.18359828,143.79,143.78,25.6047191]
[1750764538661,29.46,143.8,143.78,25.6047191]
[1750764540390,35.14573154,143.82,143.78,31.31045064]
[1750764540574,5.1852739,143.81,143.78,31.31045064]
[1750764540892,35.14573154,143.82,143.78,31.31045064]
[1750764541090,5.18525522,143.83,143.79,26.0]
[1750764541390,6.5088,143.89,143.83,18.64964886]
[1750764541685,5.18719375,143.88,143.87,5.70573154]
[1750764541892,161.77113561,143.93,143.86,18.64964886]
[1750764541893,5.18719375,143.9,143.86,18.64964886]
[1750764542065,5.70573154,143.92,143.85,27.5467]
[1750764542066,5.18719375,143.92,143.9,18.64964886]
[1750764542265,1.5233,143.98,143.92,18.64964886]
[1750764542266,5.18648302,143.95,143.92,18.64964886]
[1750764542483,5.18648302,143.97,143.95,18.64964886]
[1750764542669,5.18648302,143.99,143.98,26.0]
[1750764542873,25.0,144.0,143.98,32.7]
[1750764543187,25.0,144.0,143.99,24.3553804]
[1750764543487,25.0,144.0,143.98,6.7]
[1750764543701,25.0,144.0,143.99,25.34964886]
[1750764544060,1.23,144.0,143.95,18.64964886]
[1750764544289,1.23,144.0,143.99,25.59457559]
[1750764544881,1.23,144.0,143.99,6.94492673]
[1750764545105,1.23,144.0,143.99,25.59457559]
[1750764545468,1.23,144.0,143.99,31.30030713]
[1750764545770,1.4472691,144.03,144.0,18.64964886]
[1750764546091,1.4472691,144.03,144.01,24.3553804]
[1750764546397,1.4472691,144.03,144.02,31.29886047]
[1750764546798,1.4472691,144.03,144.02,25.59312893]
[1750764547787,1.4472691,144.03,144.02,18.64964886]
[1750764548091,1.4472691,144.03,144.0,18.64964886]
[1750764548288,7.15300064,144.03,144.01,6.94396222]
[1750764548598,1.4472691,144.03,144.0,18.64964886]
[1750764548810,5.70573154,144.01,143.94,5.70573154]
[1750764548970,5.70573154,143.97,143.95,25.34964886]
[1750764550583,5.70573154,143.97,143.95,32.29625821]
[1750764550977,5.70573154,143.96,143.94,6.7]
[1750764551204,5.70573154,143.95,143.94,25.34964886]
[1750764551586,29.8,143.95,143.94,6.7]
[1750764551779,35.50573154,143.95,143.94,6.7]
[1750764552178,29.8,143.95,143.94,6.7]
[1750764552395,35.50573154,143.95,143.94,6.7]
[1750764553901,29.8,143.95,143.94,25.34964886]
[1750764554086,35.50573154,143.95,143.94,25.34964886]
[1750764554498,29.8,143.95,143.94,32.29698802]
[1750764554802,5.70573154,143.97,143.95,18.64964886]
[1750764554993,35.50573154,143.98,143.95,18.64964886]
[1750764555182,29.8,143.98,143.95,18.64964886]
[1750764555381,5.70573154,143.97,143.94,13.64733916]
[1750764555681,5.70573154,143.98,143.94,13.64733916]
[1750764555895,31.2472691,144.03,143.98,18.64964886]
[1750764556188,31.2472691,144.03,144.01,18.64964886]
[1750764556394,31.2472691,144.03,144.02,6.7]
[1750764557405,9.47013087,144.08,144.03,18.64964886]
[1750764557615,9.47013087,144.08,144.03,28.11977973]
[1750764558276,9.47013087,144.08,144.05,18.64964886]
[1750764558507,29.8,144.1,144.05,18.64964886]
[1750764558786,9.47013087,144.08,144.05,18.64964886]
[1750764560096,9.47013087,144.08,144.05,6.94174111]
[1750764560489,9.47013087,144.07,144.05,6.94174111]
[1750764561304,39.21013087,144.06,144.03,18.64964886]
[1750764561624,9.47013087,144.05,144.03,18.64964886]
[1750764561992,9.47013087,144.05,144.02,6.94331915]
[1750764562324,9.47013087,144.04,144.03,6.7]
[1750764562980,9.47013087,144.04,144.01,6.7]
[1750764563185,9.47013087,144.02,144.01,25.34964886]
[1750764563377,29.72,144.02,144.01,25.34964886]
[1750764563863,29.72,144.05,144.02,18.64964886]
[1750764564304,29.72,144.05,144.04,18.64964886]
[1750764565717,39.27013087,144.08,144.04,28.11977973]
[1750764565877,39.25013087,144.08,144.04,28.11977973]
[1750764566077,39.25013087,144.08,144.04,18.64964886]
[1750764566390,29.78,144.08,144.06,18.64964886]
[1750764567135,9.47013087,144.07,144.06,18.64964886]
[1750764567415,39.25013087,144.08,144.06,18.64964886]
[1750764567841,29.78,144.08,144.06,18.64964886]
[1750764567995,39.25013087,144.08,144.06,18.64964886]
[1750764568202,9.47013087,144.07,144.06,6.94155213]
[1750764568424,9.47013087,144.07,144.04,6.94251596]
[1750764568611,9.47013087,144.06,144.04,6.94251596]
[1750764568816,29.78,144.08,144.04,6.94251596]
[1750764569199,9.47013087,144.07,144.04,6.94251596]
[1750764569902,39.25013087,144.08,144.04,6.94251596]
[1750764570995,29.78,144.08,144.04,6.94251596]
[1750764571203,29.78,144.08,144.05,18.64964886]
[1750764571412,29.78,144.08,144.05,28.11977973]
[1750764572204,29.78,144.08,144.05,18.64964886]
[1750764572402,39.25013087,144.08,144.06,6.94155213]
[1750764573037,29.78,144.08,144.06,6.94155213]
[1750764573199,39.25013087,144.08,144.06,6.94155213]
[1750764573403,6.429,144.14,144.07,18.64964886]
[1750764573603,9.47013087,144.1,144.08,6.94]
[1750764573802,29.82,144.09,144.08,25.58964886]
[1750764574529,29.82,144.09,144.08,32.53023742]
[1750764577023,26.0,144.15,144.09,18.64964886]
[1750764577229,5.0888124,144.21,144.14,18.64964886]
[1750764577431,5.0888124,144.21,144.17,9.47013087]
[1750764577432,5.07840376,144.21,144.17,9.47013087]
[1750764577604,9.47013087,144.18,144.12,1.6442]
[1750764577809,9.47013087,144.18,144.14,18.64964886]
[1750764578636,29.82,144.19,144.16,18.64964886]
[1750764578867,39.29013087,144.22,144.18,18.64964886]
[1750764579134,29.82,144.22,144.18,18.64964886]
[1750764579321,1.6596,144.26,144.16,28.11977973]
[1750764579322,9.47013087,144.21,144.16,28.11977973]
[1750764579640,29.94,144.23,144.18,18.64964886]
[1750764579945,39.41013087,144.23,144.18,28.11977973]
[1750764580122,9.47013087,144.23,144.18,18.64964886]
[1750764580304,9.47013087,144.26,144.21,44.64964886]
[1750764580648,9.47013087,144.23,144.22,25.58964886]
[1750764580809,39.43013087,144.23,144.22,25.58964886]
[1750764581010,39.43013087,144.23,144.22,6.94]
[1750764581515,29.96,144.23,144.22,6.94]
[1750764582429,29.96,144.23,144.22,13.87385106]
[1750764583045,39.43013087,144.23,144.22,6.94]
[1750764583429,39.43013087,144.23,144.22,6.93385106]
[1750764583656,29.96,144.23,144.22,6.93385106]
[1750764584044,5.09112676,144.27,144.25,26.0]
[1750764584334,1.4472691,144.31,144.3,18.64964886]
[1750764584533,1.4472691,144.31,144.3,25.57965579]
[1750764584765,31.4472691,144.31,144.29,6.93017387]
[1750764584963,31.4472691,144.31,144.3,6.94]
[1750764585266,1.4472691,144.31,144.3,25.58964886]
[1750764585475,1.4472691,144.31,144.3,61.05977973]
[1750764586130,1.4472691,144.31,144.3,70.5299106]
[1750764586440,1.4472691,144.31,144.3,41.98978666]
[1750764586834,1.4472691,144.31,144.3,51.45991753]
[1750764587366,5.13945588,144.38,144.34,44.64964886]
[1750764587541,5.13945588,144.38,144.34,26.0]
[1750764587742,30.02,144.39,144.35,18.64964886]
[1750764587947,30.02,144.39,144.37,18.64964886]
[1750764588152,30.02,144.39,144.38,6.94]
[1750764588745,34.49013087,144.39,144.34,6.94]
[1750764588941,9.47013087,144.36,144.34,6.94]
[1750764589738,5.14031399,144.35,144.34,6.94]
[1750764590079,9.47013087,144.36,144.34,6.94]
[1750764590251,9.47013087,144.36,144.33,18.64964886]
[1750764590457,9.47013087,144.36,144.34,6.94]
[1750764590660,25.02,144.39,144.34,6.94]
[1750764590661,25.02,144.39,144.34,13.86808321]
[1750764591175,25.02,144.39,144.35,18.64964886]
[1750764591550,6.6036,144.49,144.39,18.64964886]
[1750764591784,9.47013087,144.47,144.42,18.64964886]
[1750764591993,6.6036,144.49,144.44,18.64964886]
[1750764592291,6.6036,144.49,144.46,18.64964886]
[1750764592472,9.47013087,144.49,144.44,9.47013087]
[1750764592790,6.92049964,144.5,144.44,25.57249879]
[1750764592954,9.47013087,144.48,144.44,25.57249879]
[1750764593149,6.92008648,144.51,144.44,25.57249879]
[1750764593370,9.47013087,144.45,144.38,17.31461713]
[1750764593569,9.47013087,144.45,144.36,6.6562]
[1750764593570,9.47013087,144.45,144.4,28.11977973]
[1750764593958,9.47013087,144.45,144.39,13.84568737]
[1750764593959,9.47013087,144.44,144.39,23.31581824]
[1750764594277,9.47013087,144.43,144.4,25.56964886]
[1750764594778,9.47013087,144.44,144.4,25.56964886]
[1750764595170,30.04,144.47,144.4,6.92]
[1750764595476,9.47013087,144.43,144.4,6.92]
[1750764595857,9.47013087,144.43,144.39,6.92568737]
[1750764596180,9.47013087,144.42,144.41,6.92]
[1750764596483,9.47013087,144.44,144.41,6.92]
[1750764597178,9.47013087,144.42,144.41,6.92]
[1750764598155,9.47013087,144.43,144.41,6.92]
[1750764598390,9.47013087,144.42,144.41,6.92]
[1750764598692,9.47013087,144.43,144.41,6.92]
[1750764598890,30.04,144.47,144.41,6.92]
[1750764599063,9.47013087,144.43,144.41,6.92]
[1750764599593,9.47013087,144.44,144.41,6.92]
[1750764599951,9.47013087,144.43,144.41,6.92]
[1750764600266,39.53013087,144.42,144.32,6.5303]
[1750764600457,9.47013087,144.38,144.33,25.56964886]
[1750764600663,9.47013087,144.36,144.33,13.84856647]
[1750764601167,9.47013087,144.36,144.34,18.64964886]
[1750764601367,9.47013087,144.36,144.35,6.92760651]
[1750764601581,9.47013087,144.36,144.34,18.64964886]
[1750764601774,9.47013087,144.35,144.33,13.84809904]
[1750764602383,9.47013087,144.36,144.33,13.84809904]
[1750764603086,9.47013087,144.36,144.33,6.92809904]
[1750764603267,9.47013087,144.35,144.33,14.04809904]
[1750764603469,9.47013087,144.4,144.33,7.12]
[1750764603470,9.47013087,144.34,144.33,7.12]
[1750764603773,9.47013087,144.34,144.29,17.32620936]
[1750764603774,9.47013087,144.34,144.28,18.64964886]
[1750764603955,30.04,144.35,144.29,7.12]
[1750764604357,9.47013087,144.31,144.29,7.12]
[1750764604596,9.47013087,144.31,144.28,25.58061642]
[1750764604758,9.47013087,144.3,144.28,32.70061642]
[1750764604957,30.04,144.35,144.28,7.12]
[1750764604958,9.47013087,144.29,144.28,7.12]
[1750764605377,9.47013087,144.29,144.28,14.05096756]
[1750764605582,9.47013087,144.29,144.28,7.12]
[1750764606474,9.47013087,144.29,144.27,6.93144797]
[1750764606672,31.5463,144.35,144.27,6.93144797]
[1750764606874,9.47013087,144.32,144.28,18.64964886]
[1750764607105,9.47013087,144.31,144.28,18.64964886]
[1750764607294,9.47013087,144.31,144.29,6.93048721]
[1750764607796,36.96766169,144.35,144.29,6.93048721]
[1750764607797,9.47013087,144.3,144.29,6.93048721]
[1750764608276,9.47013087,144.3,144.26,7.12]
[1750764608479,9.47013087,144.3,144.27,18.64964886]
[1750764608681,9.47013087,144.3,144.27,25.58109683]
[1750764609085,36.96766169,144.35,144.27,25.58109683]
[1750764609417,9.47013087,144.3,144.27,25.58109683]
[1750764609580,9.47013087,144.28,144.25,59.62448468]
[1750764609904,9.47013087,144.26,144.25,59.62448468]
[1750764611779,9.47013087,144.26,144.25,66.55689369]
[1750764612932,9.47013087,144.27,144.25,66.55689369]
[1750764613135,30.18,144.29,144.25,66.55689369]
[1750764613429,9.47013087,144.28,144.25,66.55689369]
[1750764613590,9.47013087,144.26,144.25,59.62448468]
[1750764613797,9.47013087,144.26,144.25,66.55686962]
[1750764615030,9.47013087,144.27,144.25,66.55686962]
[1750764615237,30.18,144.29,144.26,18.64964886]
[1750764615539,39.65013087,144.29,144.26,18.64964886]
[1750764615700,9.47013087,144.3,144.26,18.64964886]
[1750764616020,9.47013087,144.29,144.26,18.64964886]
[1750764616925,9.47013087,144.29,144.27,6.93144797]
[1750764617628,9.47013087,144.28,144.25,66.55671374]
[1750764619329,9.47013087,144.29,144.25,66.55671374]
[1750764619533,9.47013087,144.28,144.25,66.55671374]
[1750764621925,5.11210965,144.31,144.25,83.88773627]
[1750764622132,9.47013087,144.31,144.26,18.64964886]
[1750764622335,30.12,144.32,144.28,18.64964886]
[1750764622526,30.12,144.32,144.29,7.12]
[1750764623328,9.47013087,144.3,144.29,7.12]
[1750764623518,9.47013087,144.3,144.26,1.6206]
[1750764623719,37.04921962,144.32,144.26,1.6206]
[1750764623720,9.47013087,144.29,144.27,7.12]
[1750764624023,9.47013087,144.29,144.27,14.0511922]
[1750764624222,30.12,144.32,144.27,14.0511922]
[1750764624442,9.47013087,144.3,144.27,14.0511922]
[1750764624814,30.12,144.32,144.27,23.52132307]
[1750764625142,30.12,144.32,144.28,9.47013087]
[1750764625326,9.47013087,144.31,144.27,31.37981214]
[1750764625533,9.47013087,144.3,144.27,14.0511922]
[1750764625723,9.47013087,144.29,144.27,14.0511922]
[1750764625929,30.12,144.32,144.27,14.0511922]
[1750764626150,9.47013087,144.3,144.27,14.0511922]
[1750764626321,9.47013087,144.29,144.27,14.0511922]
[1750764626647,35.24492354,144.32,144.27,14.0511922]
[1750764626825,9.47013087,144.3,144.27,14.0511922]
[1750764628551,9.47013087,144.29,144.27,14.0511922]
[1750764628732,9.47013087,144.3,144.27,14.0511922]
[1750764628929,9.47013087,144.3,144.27,6.9311922]
[1750764629128,9.47013087,144.3,144.27,14.0511922]
[1750764629524,9.47013087,144.29,144.27,7.12]
[1750764629824,42.17404064,144.32,144.25,59.62448468]
[1750764629825,9.47013087,144.28,144.25,59.62448468]
[1750764630034,9.47013087,144.26,144.25,59.62448468]
[1750764630555,37.0115091,144.27,144.25,59.62448468]
[1750764630736,9.47013087,144.26,144.25,59.62448468]
[1750764631130,14.60679924,144.26,144.25,59.62448468]
[1750764631440,14.60588699,144.26,144.25,59.62448468]
[1750764631634,14.60588699,144.26,144.2,7.12]
[1750764631858,9.47013087,144.21,144.2,7.12]
[1750764632343,9.47013087,144.21,144.2,14.05473963]
[1750764633127,9.47013087,144.21,144.2,6.93473963]
[1750764633330,9.47013087,144.21,144.19,6.9351186]
[1750764633538,9.47013087,144.2,144.19,6.9351186]
[1750764633941,9.47013087,144.21,144.19,6.9351186]
[1750764634253,9.47013087,144.2,144.19,6.9351186]
[1750764634452,9.47013087,144.2,144.18,14.07565091]
[1750764634634,30.08,144.23,144.18,7.14]
[1750764634635,9.47013087,144.19,144.18,7.14]
[1750764634824,39.51013087,144.19,144.18,7.14]
[1750764635437,39.51013087,144.19,144.18,14.07577472]
[1750764635849,39.51013087,144.19,144.18,7.14]
[1750764638335,39.51013087,144.19,144.13,18.64964886]
[1750764638645,9.47013087,144.14,144.13,14.0781808]
[1750764639240,9.47013087,144.15,144.13,14.0781808]
[1750764639438,9.47013087,144.18,144.14,18.64964886]
[1750764639759,9.47013087,144.18,144.14,25.78964886]
[1750764640162,30.0,144.19,144.15,9.47013087]
[1750764640334,39.47013087,144.19,144.15,9.47013087]
[1750764640535,9.47013087,144.24,144.19,18.64964886]
[1750764640736,9.47013087,144.24,144.21,6.93433187]
[1750764641533,9.47013087,144.23,144.21,6.93433187]
[1750764641732,9.47013087,144.24,144.21,6.93433187]
[1750764642065,9.47013087,144.23,144.21,6.93433187]
[1750764643062,9.47013087,144.23,144.2,6.93481276]
[1750764643534,29.98,144.25,144.2,6.93481276]
[1750764643739,9.47013087,144.23,144.2,6.93481276]
[1750764644449,29.96,144.28,144.21,35.25977973]
[1750764644637,9.47013087,144.26,144.22,9.47013087]
[1750764645259,9.47013087,144.26,144.22,6.93385106]
[1750764646361,9.47013087,144.26,144.22,24.26847871]
[1750764646532,39.41013087,144.27,144.23,18.64964886]
[1750764646730,39.41013087,144.27,144.23,28.11977973]
[1750764647138,9.47013087,144.27,144.23,28.11977973]
[1750764647345,26.0,144.31,144.25,18.64964886]
[1750764647346,31.14039792,144.31,144.25,18.64964886]
[1750764647636,39.35013087,144.3,144.25,28.11977973]
[1750764647854,29.88,144.3,144.27,18.64964886]
[1750764648355,9.47013087,144.31,144.28,7.14]
[1750764649235,9.47013087,144.3,144.28,14.07066778]
[1750764649557,29.88,144.32,144.28,14.07096756]
[1750764649558,35.03119645,144.32,144.28,14.07096756]
[1750764649750,9.47013087,144.29,144.28,14.07096756]
[1750764649940,9.47013087,144.29,144.28,7.14]
[1750764650266,9.47013087,144.29,144.28,14.07096756]
[1750764652042,35.03119645,144.32,144.28,14.07096756]
[1750764652274,29.86,144.33,144.29,18.64964886]
[1750764652438,9.47013087,144.32,144.29,18.64964886]
[1750764652645,9.47013087,144.3,144.28,14.07096756]
[1750764653466,35.01119645,144.33,144.28,14.07096756]
[1750764653652,9.47013087,144.3,144.28,14.07096756]
[1750764654740,41.93984397,144.33,144.28,7.14]
[1750764654944,9.47013087,144.29,144.28,7.14]
[1750764655344,9.47013087,144.29,144.28,14.07096756]
[1750764655553,5.15119645,144.32,144.28,14.07096756]
[1750764655753,9.47013087,144.29,144.28,7.14]
[1750764656965,9.47013087,144.29,144.28,14.07096756]
[1750764657464,9.47013087,144.29,144.28,7.14]
[1750764658272,9.47013087,144.29,144.28,14.07096756]
[1750764658469,39.31013087,144.29,144.23,8.6869]
[1750764658794,36.77048721,144.29,144.23,6.93329708]
[1750764658969,9.47013087,144.24,144.23,6.93329708]
[1750764659359,9.47013087,144.25,144.23,6.93329708]
[1750764659666,9.47013087,144.25,144.22,6.93385106]
[1750764660286,9.47013087,144.24,144.22,6.93385106]
[1750764661284,9.47013087,144.25,144.22,6.93385106]
[1750764661781,9.47013087,144.24,144.22,6.93385106]
[1750764662163,9.47013087,144.25,144.22,6.93385106]
[1750764665484,9.47013087,144.24,144.22,6.93385106]
[1750764667091,13.25659395,144.28,144.22,6.93385106]
[1750764667291,9.47013087,144.23,144.22,6.93385106]
[1750764669471,11.47847735,144.28,144.22,6.93385106]
[1750764669672,154.8827,144.31,144.24,9.47013087]
[1750764669868,5.15699696,144.3,144.26,6.93192846]
[1750764670080,9.47013087,144.29,144.26,6.93192846]
[1750764670293,9.47013087,144.3,144.27,6.94]
[1750764671109,146.6,144.31,144.27,6.94]
[1750764671392,9.47013087,144.3,144.27,6.94]
[1750764672094,9.47013087,144.3,144.28,6.93096756]
[1750764672880,9.47013087,144.29,144.27,6.94]
[1750764673079,9.47013087,144.28,144.27,13.87142459]
[1750764673278,146.6,144.31,144.27,13.87142459]
[1750764673486,26.0,144.34,144.27,23.34155546]
[1750764673804,9.47013087,144.31,144.27,40.6701754]
[1750764674578,9.47013087,144.3,144.27,13.87142459]
[1750764674912,9.47013087,144.29,144.27,13.87142459]
[1750764675411,9.47013087,144.29,144.24,26.80120156]
[1750764675575,9.47013087,144.28,144.26,6.94]
[1750764676595,9.47013087,144.28,144.26,13.87177488]
[1750764676911,29.66,144.29,144.24,6.93260174]
[1750764677202,9.47013087,144.27,144.24,6.93260174]
[1750764677820,29.66,144.29,144.24,6.93260174]
[1750764677970,9.47013087,144.28,144.25,18.64964886]
[1750764678170,39.13013087,144.29,144.25,18.64964886]
[1750764678571,9.47013087,144.3,144.27,18.64964886]
[1750764678978,9.47013087,144.29,144.27,18.64964886]
[1750764680199,9.47013087,144.29,144.27,25.58062748]
[1750764680803,36.60917265,144.32,144.25,6.93240901]
[1750764680804,9.47013087,144.28,144.25,6.93240901]
[1750764682493,10.3194521,144.31,144.26,18.64964886]
[1750764682687,9.47013087,144.3,144.26,18.64964886]
[1750764682879,9.47013087,144.29,144.26,18.64964886]
[1750764684100,6.92701449,144.37,144.28,9.47013087]
[1750764684293,9.47013087,144.33,144.3,6.93000693]
[1750764684481,9.47013087,144.33,144.3,13.87000693]
[1750764684677,9.47013087,144.32,144.3,13.87000693]
[1750764685071,5.16433111,144.33,144.3,13.87000693]
[1750764685280,9.47013087,144.34,144.3,13.87000693]
[1750764685570,9.47013087,144.33,144.3,31.19502425]
[1750764685985,5.17152089,144.35,144.32,9.47013087]
[1750764686185,8.66233561,144.41,144.32,9.47013087]
[1750764686186,9.47013087,144.43,144.38,26.0]
[1750764686384,5.164118,144.46,144.42,26.0]
[1750764686591,20.815264,144.47,144.43,26.0]
[1750764686775,20.815264,144.47,144.44,26.0]
[1750764687188,20.815264,144.47,144.45,18.64964886]
[1750764687392,20.815264,144.47,144.39,58.49697293]
[1750764687594,9.47013087,144.45,144.4,25.94964886]
[1750764687900,9.47013087,144.45,144.39,58.49697293]
[1750764687901,9.47013087,144.42,144.39,58.49697293]
[1750764688081,9.47013087,144.42,144.37,7.3]
[1750764688285,9.47013087,144.4,144.37,7.3]
[1750764688599,11.58115362,144.44,144.38,18.64964886]
[1750764688797,30.72,144.42,144.37,7.3]
[1750764688970,9.47013087,144.38,144.37,7.3]
[1750764689407,30.72,144.42,144.37,14.22663229]
[1750764689583,9.47013087,144.38,144.37,14.22663229]
[1750764689773,9.47013087,144.39,144.37,14.22663229]
[1750764689974,5.16095718,144.41,144.37,14.22663229]
[1750764690185,9.47013087,144.39,144.37,14.22663229]
[1750764690594,9.47013087,144.41,144.38,18.64964886]
[1750764691371,9.47013087,144.4,144.37,14.22663229]
[1750764691575,9.47013087,144.38,144.37,14.22663229]
[1750764692993,9.47013087,144.39,144.37,14.22663229]
[1750764693679,9.47013087,144.38,144.37,14.22663229]
[1750764694007,9.47013087,144.43,144.38,18.64964886]
[1750764694209,9.47013087,144.43,144.38,28.11977973]
[1750764694718,9.47013087,144.44,144.39,9.47013087]
[1750764694880,9.47013087,144.45,144.4,28.11977973]
[1750764695073,9.47013087,144.46,144.42,18.64964886]
[1750764695919,9.47013087,144.44,144.42,18.64964886]
[1750764696545,9.47013087,144.43,144.35,18.64964886]
[1750764696714,30.58,144.42,144.35,50.19517124]
[1750764696896,9.47013087,144.41,144.35,50.19517124]
[1750764697097,9.47013087,144.41,144.38,18.64964886]
[1750764697299,30.58,144.42,144.39,9.47013087]
[1750764697497,30.58,144.42,144.38,28.11977973]
[1750764697724,9.47013087,144.45,144.4,9.47013087]
[1750764698296,30.56,144.46,144.4,9.47013087]
[1750764698297,9.47013087,144.44,144.4,9.47013087]
[1750764699130,9.47013087,144.44,144.42,18.64964886]
[1750764699825,40.03013087,144.46,144.42,18.64964886]
[1750764700003,30.56,144.46,144.43,7.3]
[1750764701129,30.56,144.46,144.44,25.57275317]
[1750764702940,9.47013087,144.47,144.44,25.57275317]
[1750764703521,30.5,144.49,144.44,25.57275317]
[1750764703719,9.47013087,144.48,144.44,25.57275317]
[1750764704218,9.47013087,144.48,144.44,52.3511089]
[1750764704610,39.97013087,144.49,144.44,52.3511089]
[1750764704817,9.47013087,144.48,144.44,52.3511089]
[1750764706427,9.47013087,144.48,144.44,25.57275317]
[1750764706626,9.47013087,144.45,144.43,7.3]
[1750764707013,9.47013087,144.44,144.43,7.3]
[1750764707333,9.47013087,144.44,144.41,25.57422065]
[1750764707729,26.0,144.46,144.41,25.57422065]
[1750764708036,9.47013087,144.42,144.37,18.64964886]
[1750764708339,9.47013087,144.4,144.37,18.64964886]
[1750764708539,9.47013087,144.43,144.39,18.64964886]
[1750764708710,39.85013087,144.44,144.41,18.64964886]
[1750764708914,30.38,144.44,144.39,18.64964886]
[1750764709135,39.85013087,144.44,144.39,28.11977973]
[1750764709636,9.47013087,144.45,144.41,9.47013087]
[1750764710137,9.47013087,144.45,144.43,18.64964886]
[1750764711038,9.47013087,144.45,144.44,6.92328994]
[1750764711440,30.36,144.46,144.44,6.92328994]
[1750764711640,9.47013087,144.45,144.43,25.57323383]
[1750764714946,30.36,144.46,144.43,25.57323383]
[1750764715248,9.47013087,144.45,144.43,25.57323383]
[1750764716351,9.47013087,144.44,144.43,25.57323383]
[1750764716733,9.47013087,144.45,144.43,25.57323383]
[1750764718647,30.36,144.46,144.43,25.57323383]
[1750764718837,9.47013087,144.45,144.43,25.57323383]
[1750764720844,9.47013087,144.44,144.38,25.92964886]
[1750764721044,37.28276434,144.46,144.38,25.92964886]
[1750764721045,9.47013087,144.4,144.38,32.85581591]
[1750764721357,9.47013087,144.39,144.38,32.85581591]
[1750764721862,9.47013087,144.39,144.38,25.92964886]
[1750764722356,9.47013087,144.39,144.38,7.28]
[1750764723365,16.39581824,144.39,144.37,62.94314262]
[1750764723546,9.47013087,144.38,144.37,62.94314262]
[1750764723748,16.39629792,144.38,144.37,62.94314262]
[1750764724662,9.47013087,144.38,144.37,62.94314262]
[1750764725759,42.39672057,144.38,144.33,7.28]
[1750764725936,9.47013087,144.34,144.33,7.28]
[1750764726136,39.65013087,144.34,144.33,7.28]
[1750764726375,39.65013087,144.34,144.29,6.9300071]
[1750764726561,9.47013087,144.3,144.28,7.28]
[1750764726863,30.18,144.31,144.28,7.28]
[1750764727054,9.47013087,144.29,144.28,7.28]
[1750764727247,39.65013087,144.31,144.28,14.21093943]
[1750764727460,9.47013087,144.3,144.28,14.21093943]
[1750764727946,9.47013087,144.29,144.28,14.21093943]
[1750764728147,9.47013087,144.29,144.28,7.28]
[1750764729457,9.47013087,144.29,144.28,14.21096756]
[1750764730358,30.18,144.31,144.28,14.21096756]
[1750764730553,39.65013087,144.31,144.29,18.64964886]
[1750764731071,30.18,144.31,144.29,18.64964886]
[1750764731664,9.47013087,144.32,144.29,18.64964886]
[1750764732158,9.47013087,144.32,144.3,6.93000693]
[1750764732975,9.47013087,144.31,144.3,6.93000693]
[1750764733172,9.47013087,144.31,144.29,6.93030357]
[1750764733361,9.47013087,144.3,144.29,6.93030357]
[1750764733762,9.47013087,144.3,144.28,14.21089849]
[1750764734076,9.47013087,144.29,144.28,7.28]
[1750764735178,39.59013087,144.31,144.28,32.86049014]
[1750764735581,9.47013087,144.3,144.28,32.86049014]
[1750764735788,39.59013087,144.31,144.28,32.86049014]
[1750764736465,9.47013087,144.31,144.28,25.58049014]
[1750764737174,9.47013087,144.3,144.28,25.58049014]
[1750764737993,30.1,144.32,144.28,25.58049014]
[1750764737994,9.47013087,144.29,144.28,6.93084128]
[1750764740076,9.47013087,144.29,144.27,6.93124098]
[1750764740271,9.47013087,144.28,144.27,6.93124098]
[1750764740581,9.47013087,144.28,144.26,7.28]
[1750764740582,9.47013087,144.28,144.26,14.21171293]
[1750764740781,9.47013087,144.27,144.26,14.21171293]
[1750764741090,9.47013087,144.27,144.26,7.28]
[1750764741457,39.57013087,144.28,144.26,7.28]
[1750764742185,9.47013087,144.27,144.26,14.21192846]